bitfinex/quotes_ETHUSD_20241001
["timestamp","ask_amount","ask_price","bid_price","bid_amount"]
[1727757167814,4.55637,2643.1,2642.5,3.78419]
[1727757168335,0.7729,2643.1,2642.5,7.56838]
[1727757168639,4.55634,2643.1,2642.5,3.78419]
[1727757168795,4.55637,2643.1,2642.5,3.78419]
[1727757169244,4.55637,2643.1,2642.5,7.56839]
[1727757169531,0.7729,2643.1,2642.6,3.84646199]
[1727757170006,4.55643,2643.1,2642.6,0.06240199]
[1727757170520,8.33999,2643.1,2642.6,0.06240199]
[1727757170830,3.78358,2643.0,2642.6,0.06240199]
[1727757172032,0.456528,2642.9,2642.6,3.84655199]
[1727757172236,0.0008,2642.9,2642.6,0.06240199]
[1727757172405,0.0008,2642.9,2642.6,3.84654199]
[1727757172600,0.0008,2642.9,2642.8,3.78386]
[1727757173131,0.0008,2642.9,2642.8,3.84628763]
[1727757174324,0.0008,2642.9,2642.8,3.92195772]
[1727757174527,0.0008,2642.9,2642.8,4.30185772]
[1727757176024,0.0008,2642.9,2642.8,4.22618763]
[1727757177553,0.0008,2642.9,2642.8,3.84628763]
[1727757177744,0.0008,2642.9,2642.8,0.06242763]
[1727757178106,0.0008,2642.9,2642.7,3.78388]
[1727757178411,0.0008,2642.9,2642.8,0.06234908]
[1727757178614,0.0008,2642.9,2642.7,3.78388]
[1727757178926,0.0008,2642.9,2642.8,0.06234908]
[1727757179126,0.459043,2642.9,2642.8,0.06234908]
[1727757179299,0.459043,2642.9,2642.5,4.16411]
[1727757179504,0.459043,2642.9,2642.8,0.06234908]
[1727757179728,0.459043,2642.9,2642.3,7.56903]
[1727757179941,0.459043,2642.9,2642.8,0.06234908]
[1727757179942,3.78461,2642.9,2642.8,0.06234908]
[1727757180243,3.78461,2642.9,2642.1,3.78484]
[1727757180244,7.56823,2642.7,2642.1,3.78484]
[1727757180546,0.76,2642.9,2642.7,3.78399]
[1727757181039,0.76,2642.9,2642.5,3.78418]
[1727757181241,0.76,2642.9,2642.6,3.78406]
[1727757181601,0.76,2642.9,2642.7,3.78397]
[1727757182639,0.76,2642.9,2642.8,3.78386]
[1727757183148,0.76,2642.9,2642.7,3.78397]
[1727757183441,0.76,2642.9,2642.7,3.78391]
[1727757183742,0.0008,2642.9,2642.7,3.78391]
[1727757184162,0.0008,2642.9,2642.7,7.56783]
[1727757184362,0.0008,2642.9,2642.8,3.78386]
[1727757184526,0.0008,2642.9,2642.8,3.84428071]
[1727757184930,0.0008,2642.9,2642.8,0.06042071]
[1727757185176,0.0008,2642.9,2642.7,3.78391]
[1727757185368,0.0008,2642.9,2642.8,0.06040204]
[1727757185670,0.0008,2642.9,2642.7,3.78388]
[1727757185971,0.7785,2642.9,2642.8,0.06040204]
[1727757186262,0.7785,2642.9,2642.6,3.78403]
[1727757186263,0.7785,2642.9,2642.6,3.78413]
[1727757186464,0.7785,2642.9,2642.8,0.06040204]
[1727757186666,0.7785,2642.9,2642.7,0.06043598]
[1727757186869,0.7785,2642.9,2642.8,0.06040204]
[1727757187272,1.234695,2642.9,2642.5,23.73421]
[1727757187439,1.234695,2642.9,2642.8,0.06040204]
[1727757187763,5.018465,2642.9,2642.5,19.95]
[1727757187947,5.018465,2642.9,2642.8,0.06040204]
[1727757188152,5.018465,2642.9,2642.5,19.95]
[1727757188153,1.234695,2642.9,2642.5,19.95]
[1727757188343,5.018465,2642.9,2642.5,19.95]
[1727757188542,4.56227,2642.9,2642.6,0.05852833]
[1727757188868,0.8053,2642.7,2642.6,0.05852833]
[1727757189658,4.6067,2642.7,2642.6,0.05852833]
[1727757189877,0.816,2642.4,2641.7,3.7853]
[1727757190040,4.60043,2642.4,2641.9,3.78512]
[1727757190359,8.09494476,2642.4,2641.7,7.57062]
[1727757190562,4.60043,2642.4,2641.8,3.78526]
[1727757191071,3.7847,2642.3,2641.7,3.7853]
[1727757191362,3.7847,2642.3,2641.6,3.78555]
[1727757191363,3.78487,2642.1,2641.6,3.78555]
[1727757191575,0.8033,2642.0,2641.5,27.52133]
[1727757191777,0.8033,2642.0,2641.5,3.78564]
[1727757191993,1.262117,2642.0,2641.3,3.78598]
[1727757192174,0.7834,2641.8,2641.3,7.57183]
[1727757192488,0.7834,2641.8,2641.3,3.78591]
[1727757194187,0.7834,2641.8,2641.2,3.78607]
[1727757194339,0.7834,2641.8,2641.1,3.78623]
[1727757194340,8.34968,2641.7,2641.1,3.78623]
[1727757194540,0.7786,2641.6,2641.1,3.78622]
[1727757195082,0.7786,2641.6,2641.3,3.78598]
[1727757196747,0.7786,2641.6,2641.1,3.78619]
[1727757197486,0.7786,2641.6,2641.2,0.04884779]
[1727757197642,1.28527817,2641.6,2641.2,0.04884779]
[1727757198286,1.28527817,2641.6,2641.3,3.786]
[1727757198550,1.28527817,2641.6,2641.4,0.048948]
[1727757198970,0.7786,2641.6,2641.1,3.78619]
[1727757199178,4.56431,2641.6,2641.5,0.04894019]
[1727757199363,4.56431,2641.6,2641.0,3.78636]
[1727757199680,0.7684,2641.5,2641.0,3.78636]
[1727757199860,0.7684,2641.5,2641.1,3.78627]
[1727757200461,0.7684,2641.5,2641.3,3.78593]
[1727757200673,0.7684,2641.5,2641.3,7.57186]
[1727757200978,0.7684,2641.5,2641.3,3.78593]
[1727757201958,0.7544,2642.0,2641.3,3.78593]
[1727757202157,1.10385148,2642.0,2641.5,3.78569]
[1727757202732,0.7544,2642.0,2641.7,3.78542]
[1727757202984,0.7833,2642.4,2641.6,24.3463201]
[1727757203290,0.7833,2642.4,2642.2,3.7846]
[1727757204174,0.7833,2642.4,2642.0,3.78492]
[1727757204552,0.7833,2642.4,2641.9,19.95]
[1727757204900,3.78466,2642.3,2641.9,19.95]
[1727757205044,1.240068,2642.4,2641.9,19.95]
[1727757205248,1.240068,2642.4,2642.1,3.78477]
[1727757205249,0.7833,2642.4,2642.1,3.78477]
[1727757205753,0.7833,2642.4,2642.0,3.78491]
[1727757207476,4.56774,2642.4,2641.9,19.95]
[1727757208501,3.78459,2642.3,2641.9,19.95]
[1727757208704,3.78459,2642.3,2641.8,3.7852]
[1727757209579,0.8143,2642.1,2641.6,3.78547]
[1727757209907,3.78503,2642.0,2641.5,3.78571]
[1727757210252,0.8143,2642.1,2641.7,3.49451476]
[1727757210405,0.8143,2642.1,2641.8,3.78519]
[1727757211307,0.7571,2642.3,2641.9,3.78515]
[1727757211498,0.7571,2642.3,2641.8,3.78519]
[1727757213375,0.7571,2642.3,2641.6,0.8184]
[1727757213575,3.0,2642.8,2642.2,3.78472]
[1727757213576,0.787,2642.7,2642.2,3.78472]
[1727757213778,0.787,2642.7,2642.2,3.78462]
[1727757214220,0.787,2642.7,2642.4,3.78432]
[1727757214524,0.0008,2642.9,2642.4,3.78432]
[1727757214724,0.0008,2642.9,2642.6,3.78413]
[1727757215080,0.0008,2642.9,2642.7,0.04843183]
[1727757215788,0.0008,2642.9,2642.4,3.78432]
[1727757215999,0.0008,2642.9,2642.8,0.04821114]
[1727757216199,0.462264,2642.9,2642.4,3.78432]
[1727757216380,0.0008,2642.9,2642.8,0.04821114]
[1727757216577,0.0008,2642.9,2642.6,3.78405]
[1727757216822,0.0008,2642.9,2642.7,0.04824134]
[1727757219632,0.0008,2642.9,2642.8,0.04815886]
[1727757219802,0.0008,2642.9,2642.6,3.78414]
[1727757219985,0.0008,2642.9,2642.8,0.04815886]
[1727757220186,0.0008,2642.9,2642.6,3.78414]
[1727757220408,0.0008,2642.9,2642.8,0.04815886]
[1727757220607,0.0008,2642.9,2642.4,3.78432]
[1727757220822,0.0008,2642.9,2642.8,0.04815886]
[1727757221022,0.0008,2642.9,2642.6,7.56808]
[1727757221325,0.0008,2642.9,2642.8,0.04816633]
[1727757221538,0.0008,2642.9,2642.7,3.83217533]
[1727757221733,0.0008,2642.9,2642.8,0.04815139]
[1727757222037,0.0008,2642.9,2642.6,3.78404]
[1727757222225,0.0008,2642.9,2642.8,0.04815139]
[1727757222426,0.0008,2642.9,2642.4,3.78441]
[1727757222631,0.0008,2642.9,2642.8,0.04783019]
[1727757222815,0.0008,2642.9,2642.4,3.78441]
[1727757223142,0.0008,2642.9,2642.8,0.04783019]
[1727757223339,0.0008,2642.9,2642.4,7.56876]
[1727757223546,0.0008,2642.9,2642.8,0.04783019]
[1727757223702,0.0008,2642.9,2642.4,7.56868]
[1727757223902,0.0008,2642.9,2642.8,0.04783019]
[1727757224103,4.55826,2642.8,2642.3,19.95]
[1727757224344,7.56842,2642.6,2642.3,19.95]
[1727757224640,0.7835,2642.5,2642.3,19.95]
[1727757224848,4.56782,2642.5,2642.3,19.95]
[1727757225344,0.7835,2642.5,2642.3,19.95]
[1727757225639,0.7835,2642.5,2641.8,11.50513]
[1727757225640,0.7518,2642.5,2641.8,3.78523]
[1727757225847,0.7518,2642.2,2641.6,3.78547]
[1727757226144,0.7518,2642.2,2641.7,3.7853]
[1727757227043,0.7518,2642.2,2641.8,3.78524]
[1727757227450,0.7518,2642.2,2641.5,3.78567]
[1727757227451,8.48468276,2642.2,2641.5,3.78567]
[1727757227612,3.78502,2642.0,2641.3,24.11578]
[1727757228003,3.78502,2642.0,2641.4,3.78584]
[1727757228422,4.54517,2642.1,2641.3,24.11578]
[1727757228701,4.54518,2642.1,2641.5,3.78559]
[1727757228920,3.78501,2642.0,2641.5,3.78559]
[1727757229133,0.7603,2642.1,2641.5,3.78559]
[1727757229420,3.78502,2642.0,2641.6,0.04724042]
[1727757229662,0.833005,2642.0,2641.5,3.78572]
[1727757229866,4.5452,2642.1,2641.7,0.04720645]
[1727757230154,4.5452,2642.1,2641.5,3.78572]
[1727757230360,4.5452,2642.1,2641.8,0.04717249]
[1727757230535,0.832993,2642.0,2641.5,3.78572]
[1727757230733,4.5452,2642.1,2641.9,0.04713853]
[1727757230939,4.5452,2642.1,2641.5,3.78572]
[1727757231132,4.5452,2642.1,2642.0,0.04709337]
[1727757231648,4.5452,2642.1,2641.5,3.78572]
[1727757231954,5.378193,2642.1,2642.0,0.04709337]
[1727757232164,5.378193,2642.1,2641.5,7.57134]
[1727757232319,5.378193,2642.1,2642.0,0.04709337]
[1727757232320,0.7603,2642.1,2642.0,0.04709337]
[1727757232526,0.7603,2642.1,2641.5,3.78562]
[1727757232748,4.54525,2642.1,2642.0,0.04709337]
[1727757233037,5.378248,2642.1,2642.0,0.04739589]
[1727757233358,5.378248,2642.1,2641.5,3.78562]
[1727757233658,0.7603,2642.1,2641.6,3.78555]
[1727757233848,0.7603,2642.1,2641.6,3.83308173]
[1727757234630,0.7603,2642.1,2641.6,0.04753173]
[1727757234956,0.7603,2642.1,2641.8,3.78526]
[1727757235157,0.7603,2642.1,2641.8,3.78519]
[1727757235368,0.7603,2642.1,2641.9,3.83249611]
[1727757235653,0.7603,2642.1,2641.9,0.04742611]
[1727757236565,0.7603,2642.1,2641.6,3.78549]
[1727757236717,0.7603,2642.1,2642.0,0.04732117]
[1727757236923,1.214805,2642.1,2641.6,3.78549]
[1727757237235,4.999705,2642.1,2641.6,3.78549]
[1727757237425,4.999705,2642.1,2641.7,0.04742305]
[1727757239128,1.214805,2642.1,2641.7,0.04742305]
[1727757239329,0.7603,2642.1,2641.7,3.83278305]
[1727757240940,0.7603,2642.1,2641.7,0.04742305]
[1727757241665,0.7603,2642.1,2641.8,3.78522]
[1727757241962,0.8326,2642.4,2641.9,0.04742611]
[1727757242164,0.8326,2642.4,2642.0,3.78496]
[1727757242534,4.61706,2642.4,2642.1,0.04733205]
[1727757242727,6.15230118,2642.4,2642.1,0.04733205]
[1727757242930,6.15230118,2642.4,2641.9,3.78505]
[1727757243464,6.15230118,2642.4,2642.0,0.0473137]
[1727757243632,9.93683118,2642.4,2642.0,0.0473137]
[1727757243827,6.15230118,2642.4,2641.8,3.78518]
[1727757244045,6.15230118,2642.4,2641.9,3.83248766]
[1727757244528,3.78476,2642.2,2641.9,0.04734766]
[1727757244747,0.7772,2642.1,2641.9,0.04734766]
[1727757245036,0.7772,2642.1,2642.0,0.04717175]
[1727757245235,0.7772,2642.1,2641.6,3.78557]
[1727757245547,4.56214,2642.1,2641.7,0.04727363]
[1727757245874,5.80781349,2642.1,2641.7,0.04727363]
[1727757246357,4.59839,2641.8,2641.7,0.04727363]
[1727757246732,0.8131,2641.6,2641.4,19.95]
[1727757248870,0.7804,2641.4,2641.1,19.95]
[1727757249179,0.7804,2641.4,2641.0,3.78643]
[1727757249969,0.7804,2641.4,2640.9,23.73655]
[1727757250172,4.56628,2641.4,2640.9,19.95]
[1727757250391,0.7804,2641.4,2640.9,19.95]
[1727757250667,3.49451476,2641.7,2641.3,3.78587]
[1727757250668,4.25701476,2641.7,2641.3,3.78587]
[1727757250830,0.7625,2641.7,2641.3,3.78587]
[1727757252042,0.7625,2641.7,2641.1,3.78621]
[1727757252043,4.54794,2641.7,2641.1,3.78621]
[1727757252259,4.54794,2641.7,2640.9,24.11648]
[1727757252260,0.7641,2641.6,2640.9,24.11648]
[1727757252566,4.54977,2641.6,2641.0,3.7864]
[1727757252778,0.7641,2641.6,2641.1,3.78618]
[1727757252973,0.7641,2641.6,2641.3,3.78601]
[1727757253278,0.7641,2641.6,2641.1,3.78618]
[1727757253440,3.78574,2641.5,2641.0,3.78643]
[1727757253640,0.7826,2641.4,2641.0,3.78643]
[1727757254377,0.7826,2641.4,2640.9,20.3299]
[1727757254378,3.78605,2641.3,2640.9,20.3299]
[1727757255392,4.30011476,2641.1,2640.8,19.95]
[1727757255538,3.78674,2640.8,2640.5,19.95]
[1727757255876,3.78674,2640.8,2639.7,3.49451476]
[1727757255877,0.8056,2640.9,2640.6,19.95]
[1727757257580,4.59221,2640.9,2640.6,19.95]
[1727757257736,3.0,2641.4,2640.6,19.95]
[1727757257737,0.8017,2641.3,2640.6,19.95]
[1727757257959,0.8017,2641.3,2640.9,7.57294]
[1727757258244,0.8017,2641.3,2640.9,3.78645]
[1727757259482,0.8017,2641.3,2641.0,0.0389122]
[1727757260893,0.8017,2641.3,2640.7,3.78677]
[1727757261190,0.8017,2641.3,2640.8,0.03898017]
[1727757261589,0.8017,2641.3,2640.7,7.57354]
[1727757261758,4.5878,2641.3,2640.9,0.03894619]
[1727757261958,4.5878,2641.3,2640.8,0.03898017]
[1727757262154,4.5887,2641.1,2641.0,0.03885625]
[1727757262399,1.26127,2641.1,2640.9,0.03889023]
[1727757262696,1.26127,2641.1,2641.0,0.03885625]
[1727757262990,0.8024,2641.1,2640.7,3.78685]
[1727757263160,0.8024,2641.1,2641.0,0.03885625]
[1727757263358,0.8024,2641.1,2640.7,3.78685]
[1727757263576,0.8024,2641.1,2641.0,0.03885625]
[1727757263791,0.8024,2641.1,2640.7,3.78685]
[1727757264282,0.8024,2641.1,2640.8,0.03892421]
[1727757264595,0.8024,2641.1,2640.7,3.78685]
[1727757264778,0.8024,2641.1,2640.9,0.03889023]
[1727757264985,0.8024,2641.1,2640.8,0.03892421]
[1727757265325,0.8024,2641.1,2640.9,0.03889023]
[1727757265795,1.261265,2641.1,2640.6,3.78699]
[1727757265978,5.047565,2641.1,2641.0,0.03885625]
[1727757266194,4.58609,2641.0,2640.4,3.78726]
[1727757266497,4.58609,2641.0,2640.5,3.7871]
[1727757266708,0.7996,2641.0,2640.6,3.78699]
[1727757267387,0.7996,2641.0,2640.5,3.7871]
[1727757268112,0.7996,2641.0,2640.4,3.78724]
[1727757268272,0.7996,2641.0,2640.5,3.78708]
[1727757269016,0.7996,2641.0,2640.6,3.787]
[1727757269516,0.7996,2641.0,2640.9,3.78658]
[1727757269690,0.7996,2641.0,2640.8,3.78672]
[1727757271415,0.7996,2641.0,2640.6,3.78693]
[1727757271621,0.7996,2641.0,2640.6,7.57386]
[1727757271821,0.7996,2641.0,2640.6,3.78693]
[1727757272110,0.7996,2641.0,2640.6,7.57385]
[1727757272289,0.7996,2641.0,2640.7,3.78684]
[1727757272487,0.7709,2641.2,2640.7,3.78675]
[1727757272686,0.8165,2641.5,2640.9,3.78646]
[1727757272871,0.8165,2641.5,2641.0,3.78638]
[1727757273070,4.60224,2641.5,2641.0,3.78638]
[1727757274139,0.8165,2641.5,2641.0,3.78638]
[1727757274624,0.8165,2641.5,2641.1,0.03895286]
[1727757274827,0.8165,2641.5,2641.1,3.82523286]
[1727757275629,0.8165,2641.5,2641.1,3.82516286]
[1727757276283,0.8165,2641.5,2641.1,7.61136286]
[1727757276518,0.8165,2641.5,2641.2,3.78614]
[1727757276685,0.8165,2641.5,2641.2,3.82493204]
[1727757276897,0.8165,2641.5,2641.2,0.03879204]
[1727757279081,4.60222,2641.5,2640.9,7.573]
[1727757279290,4.60222,2641.5,2641.3,0.03857152]
[1727757279499,5.741,2641.5,2641.0,3.78644]
[1727757279826,5.741,2641.5,2641.4,0.03853754]
[1727757280032,5.741,2641.5,2641.0,3.78644]
[1727757280215,5.741,2641.5,2641.4,0.03853754]
[1727757280405,3.78591,2641.4,2640.9,3.78649]
[1727757280789,3.78591,2641.4,2641.0,0.03867345]
[1727757281616,1.95528,2641.5,2641.1,3.78629]
[1727757281804,0.8165,2641.5,2641.1,3.78629]
[1727757282024,0.8165,2641.5,2641.2,0.03865398]
[1727757282189,4.60224,2641.5,2641.2,0.03865398]
[1727757282388,0.8165,2641.5,2641.2,0.03865398]
[1727757282629,0.8165,2641.5,2641.0,4.54005]
[1727757282828,0.8165,2641.5,2641.3,0.03862001]
[1727757283005,1.276708,2641.5,2641.1,3.78629]
[1727757283201,0.8165,2641.5,2641.4,0.03858604]
[1727757283734,4.60231,2641.5,2640.9,3.78649]
[1727757283889,3.78617,2641.2,2640.7,23.73678]
[1727757284111,4.61712,2641.0,2640.3,7.57469]
[1727757284308,4.61712,2641.0,2640.3,3.78732]
[1727757284508,0.8306,2641.0,2640.5,3.78705]
[1727757284907,4.61706,2641.0,2640.5,3.78705]
[1727757285212,0.840345,2640.9,2640.4,3.78721]
[1727757285415,0.840345,2640.9,2640.5,3.78712]
[1727757285751,0.840345,2640.9,2640.5,3.78706]
[1727757285906,0.8306,2641.0,2640.5,3.78706]
[1727757286537,0.8306,2641.0,2640.6,3.78696]
[1727757286960,0.8306,2641.0,2640.5,3.78706]
[1727757287669,3.0,2641.6,2640.5,3.78706]
[1727757287670,0.7754,2642.7,2641.2,0.55]
[1727757287951,0.7754,2642.7,2642.1,3.78486]
[1727757288752,0.7754,2642.7,2642.0,3.78494]
[1727757288919,0.7754,2642.7,2641.9,0.8267]
[1727757289120,4.5594,2642.7,2642.1,3.78484]
[1727757289552,4.5594,2642.7,2642.2,0.03811295]
[1727757289750,0.834328,2642.6,2642.2,0.03811295]
[1727757290455,0.834328,2642.6,2642.2,3.82139997]
[1727757290638,0.7754,2642.7,2642.2,3.82139997]
[1727757292055,4.55941,2642.7,2642.2,3.82139997]
[1727757292215,0.7754,2642.7,2642.2,3.82134997]
[1727757293930,4.55943,2642.7,2642.2,3.82134997]
[1727757294253,0.755943,2642.6,2642.2,3.82134997]
[1727757294971,0.0008,2642.9,2642.8,3.78386]
[1727757295154,0.0008,2642.9,2642.8,4.57366]
[1727757295316,0.0008,2642.9,2642.8,4.68670649]
[1727757296117,0.0008,2642.9,2642.8,4.61103783]
[1727757298591,0.0008,2642.9,2642.8,0.82717783]
[1727757299787,0.0008,2642.9,2642.8,4.61103783]
[1727757300684,0.0008,2642.9,2642.8,0.03737783]
[1727757301060,0.0008,2642.9,2642.5,7.5684]
[1727757301261,0.0008,2642.9,2642.5,3.78417]
[1727757301480,0.0008,2642.9,2642.6,3.78406]
[1727757301681,0.0008,2642.9,2642.6,3.82128955]
[1727757302894,0.0008,2642.9,2642.6,0.03722955]
[1727757303072,0.0008,2642.9,2642.6,3.82135955]
[1727757303271,0.0008,2642.9,2642.6,0.03722955]
[1727757305985,0.0008,2642.9,2642.7,3.78387]
[1727757306185,0.0008,2642.9,2642.6,0.03722955]
[1727757306502,0.0008,2642.9,2642.7,0.03695338]
[1727757306660,0.0008,2642.9,2642.5,3.78418]
[1727757306861,0.0008,2642.9,2642.6,0.03698731]
[1727757308406,0.0008,2642.9,2642.7,3.7839]
[1727757308884,0.0008,2642.9,2642.8,3.82072355]
[1727757310014,0.0008,2642.9,2642.8,0.03686355]
[1727757310369,0.0008,2642.9,2642.7,3.78399]
[1727757310682,0.0008,2642.9,2642.8,0.03686355]
[1727757311078,0.0008,2642.9,2642.6,3.78401]
[1727757311377,0.0008,2642.9,2642.7,0.03689749]
[1727757312587,0.7762,2642.9,2642.7,0.03689749]
[1727757313875,0.0008,2642.9,2642.7,0.03689749]
[1727757314074,0.1280229,2643.4,2643.0,0.8054]
[1727757314317,0.1280229,2643.4,2643.3,10.27765476]
[1727757314522,0.1280229,2643.4,2643.3,8.46295476]
[1727757314873,0.1280229,2643.4,2643.3,5.00515627]
[1727757316902,0.1280229,2643.4,2643.3,3.81985627]
[1727757318386,0.1280229,2643.4,2643.3,0.03671627]
[1727757318600,0.1280229,2643.4,2643.3,0.05595958]
[1727757318812,0.1280229,2643.4,2643.3,3.83909958]
[1727757319593,0.1280229,2643.4,2643.3,0.05595958]
[1727757319795,0.1280229,2643.4,2643.0,4.63611476]
[1727757319796,0.1280229,2643.4,2643.0,3.78348]
[1727757319994,0.1280229,2643.4,2643.3,0.06296709]
[1727757320310,0.1280229,2643.4,2643.2,3.78318]
[1727757320480,0.1280229,2643.4,2643.3,0.06296709]
[1727757320813,0.1280229,2643.4,2643.2,3.78318]
[1727757320977,0.1280229,2643.4,2643.3,0.06296709]
[1727757321179,0.1280229,2643.4,2643.2,3.78318]
[1727757321379,0.1280229,2643.4,2643.3,0.06296709]
[1727757321894,0.1280229,2643.4,2643.2,7.56637]
[1727757322089,0.1280229,2643.4,2643.3,3.84610709]
[1727757323129,0.87081959,2644.1,2644.0,4.16204]
[1727757323433,0.87081959,2644.1,2644.0,10.80364193]
[1727757323715,0.87081959,2644.1,2644.0,10.72800846]
[1727757325081,0.87081959,2644.1,2644.0,7.72800846]
[1727757326752,0.87081959,2644.1,2644.0,3.8535937]
[1727757327644,0.87081959,2644.1,2644.0,0.0714537]
[1727757328020,0.87081959,2644.1,2643.7,3.78245]
[1727757328221,0.87081959,2644.1,2644.0,0.08336266]
[1727757328414,0.87081959,2644.1,2643.7,3.78245]
[1727757328614,0.87081959,2644.1,2644.0,0.08336266]
[1727757328905,0.87081959,2644.1,2643.7,3.78245]
[1727757329232,0.87081959,2644.1,2643.6,3.7826]
[1727757329436,0.87081959,2644.1,2643.8,0.08353219]
[1727757329743,0.87081959,2644.1,2643.7,0.08361696]
[1727757329907,0.87081959,2644.1,2643.9,0.08344742]
[1727757330358,0.792,2643.9,2643.4,3.78292]
[1727757330504,0.792,2643.9,2643.2,3.78328]
[1727757330505,4.5743,2643.9,2643.2,3.78328]
[1727757330851,8.35673,2643.9,2643.2,3.78328]
[1727757331146,0.792,2643.9,2643.4,3.78289]
[1727757331322,0.792,2643.9,2643.4,7.56581]
[1727757332040,0.792,2643.9,2643.5,3.78283]
[1727757332707,0.792,2643.9,2643.3,0.3799]
[1727757332708,0.792,2643.9,2643.4,3.78295]
[1727757332915,0.792,2643.9,2643.5,3.78286]
[1727757333446,0.792,2643.9,2643.6,3.78269]
[1727757334149,0.792,2643.9,2643.6,3.78263]
[1727757334355,0.792,2643.9,2643.4,3.78291]
[1727757334515,0.792,2643.9,2643.7,0.10445357]
[1727757334718,0.792,2643.9,2643.4,3.78291]
[1727757334924,0.792,2643.9,2643.8,0.10441697]
[1727757335146,3.78246,2643.8,2643.3,0.3799]
[1727757336353,3.78246,2643.8,2643.3,4.16301]
[1727757337382,1.33650796,2643.9,2643.5,3.78284]
[1727757337519,0.792,2643.9,2643.5,3.78286]
[1727757338027,0.792,2643.9,2643.6,3.78263]
[1727757340653,1.68241959,2644.1,2643.7,3.78256]
[1727757341034,1.68241959,2644.1,2643.8,3.78243]
[1727757341343,0.87081959,2644.1,2643.8,3.78243]
[1727757341863,0.87081959,2644.1,2643.7,3.78255]
[1727757345664,0.87081959,2644.1,2643.6,3.78265]
[1727757346743,4.65290959,2644.1,2643.6,3.78265]
[1727757347130,4.65290959,2644.1,2643.5,4.94215]
[1727757347325,4.65290959,2644.1,2643.6,3.78269]
[1727757347771,3.78241,2643.9,2643.5,0.3799]
[1727757348468,0.7749,2644.0,2643.5,0.3799]
[1727757348671,3.78231,2643.9,2643.5,0.3799]
[1727757349665,3.78231,2643.9,2643.6,0.10448275]
[1727757352873,0.7749,2644.0,2643.6,0.10448275]
[1727757353313,4.55714,2644.0,2643.6,0.10448275]
[1727757354206,1.66751959,2644.1,2643.6,0.10448275]
[1727757354376,1.66751959,2644.1,2643.7,3.78249]
[1727757354578,1.66751959,2644.1,2643.8,0.10372812]
[1727757354785,1.66751959,2644.1,2643.7,3.78249]
[1727757354972,1.66751959,2644.1,2643.8,0.10372812]
[1727757355310,1.66751959,2644.1,2643.7,3.78249]
[1727757355461,1.66751959,2644.1,2643.9,0.10369151]
[1727757355662,1.66751959,2644.1,2643.8,0.10372812]
[1727757355972,1.66751959,2644.1,2643.9,0.10369151]
[1727757356171,1.66751959,2644.1,2643.7,3.78249]
[1727757356398,1.66751959,2644.1,2643.8,0.10372812]
[1727757356584,1.66751959,2644.1,2643.7,3.78249]
[1727757356795,1.66751959,2644.1,2643.8,0.10372812]
[1727757356990,1.66751959,2644.1,2643.7,3.78248]
[1727757357272,0.87081959,2644.1,2643.8,3.88606812]
[1727757357613,0.87081959,2644.1,2643.8,0.10372812]
[1727757357766,0.87081959,2644.1,2643.7,7.56496]
[1727757357971,0.87081959,2644.1,2643.8,3.88605812]
[1727757358484,0.87081959,2644.1,2644.0,3.78214]
[1727757358796,0.87081959,2644.1,2644.0,3.88579491]
[1727757363224,0.87081959,2644.1,2644.0,4.74202348]
[1727757364387,0.87081959,2644.1,2644.0,8.67192348]
[1727757364551,0.87081959,2644.1,2644.0,8.59629491]
[1727757364684,0.87081959,2644.1,2644.0,10.11555937]
[1727757364895,0.87081959,2644.1,2644.0,30.06555937]
[1727757365212,1.64221959,2644.1,2644.0,1.62291937]
[1727757365417,1.64221959,2644.1,2644.0,0.10365491]
[1727757365636,1.64221959,2644.1,2643.5,3.85840455]
[1727757365807,0.87081959,2644.1,2643.7,3.78245]
[1727757366014,0.87081959,2644.1,2643.8,3.94041567]
[1727757366213,0.87081959,2644.1,2643.9,3.78229]
[1727757366429,0.87081959,2644.1,2644.0,0.08238425]
[1727757367242,0.87081959,2644.1,2644.0,0.87048425]
[1727757369434,0.87081959,2644.1,2644.0,0.08238425]
[1727757369832,0.87081959,2644.1,2643.8,0.7956]
[1727757370152,0.87081959,2644.1,2643.9,0.08242085]
[1727757370947,0.7515,2644.0,2643.9,0.08242085]
[1727757371167,4.24601476,2644.0,2643.9,0.08242085]
[1727757371357,8.5399282,2644.0,2643.4,4.17691358]
[1727757371579,4.24601476,2644.0,2643.4,4.17691358]
[1727757371770,8.02818476,2644.0,2643.4,4.17691358]
[1727757371927,8.02818476,2644.0,2643.5,0.08277439]
[1727757372129,0.7515,2644.0,2643.5,0.08277439]
[1727757372328,0.7515,2644.0,2643.5,3.86563439]
[1727757372666,4.65282959,2644.1,2643.6,3.7827]
[1727757372970,0.87081959,2644.1,2643.6,3.7827]
[1727757373280,0.87081959,2644.1,2643.7,3.86520487]
[1727757373566,0.87081959,2644.1,2643.7,4.61930487]
[1727757374930,0.87081959,2644.1,2643.8,3.78243]
[1727757375130,0.87081959,2644.1,2643.7,0.83680487]
[1727757375330,0.87081959,2644.1,2643.9,0.08269085]
[1727757375557,0.87081959,2644.1,2643.8,0.08272745]
[1727757375773,0.87081959,2644.1,2644.0,0.08265425]
[1727757376096,0.87081959,2644.1,2644.0,0.08283546]
[1727757376257,0.87081959,2644.1,2643.8,3.7824]
[1727757376453,0.87081959,2644.1,2644.0,0.08283546]
[1727757376655,0.87081959,2644.1,2643.9,0.08287206]
[1727757376997,0.87081959,2644.1,2644.0,0.08283546]
[1727757377488,0.87081959,2644.1,2643.8,3.78235]
[1727757377812,0.87081959,2644.1,2644.0,3.86488876]
[1727757377951,0.87081959,2644.1,2644.0,3.78214]
[1727757378160,0.87081959,2644.1,2644.0,3.86488876]
[1727757379094,0.87081959,2644.1,2644.0,24.67932272]
[1727757379262,0.87081959,2644.1,2644.0,24.60368876]
[1727757381179,0.85074518,2644.1,2644.0,24.60368876]
[1727757382663,0.85074518,2644.1,2644.0,25.15368876]